{"text_format":"3","workbook":"xlsx","n_sheets":3,"sheets":["Оқушылар тізімі","Сынып тізімі","Оқушы туралы мәліметтер"],"not_rendered":{"images":2,"defined_names":3},"read":"whole","date_system":"1900"}

{"sheet":"Оқушылар тізімі","index":0,"n_rows":7,"n_cols":12,"rows_kept":7,"merged":[[7,1,7,11]]}
[]
[]
[null," ","ОҚУШЫНЫҢ АТЫ","ЭЛЕКТРОНДЫҚ ПОШТА","ҮЙ ТЕЛЕФОНЫ","ҰЯЛЫ ТЕЛЕФОН","ТУҒАН КҮНІ","ТӨТЕНШЕ ЖАҒДАЙДА ХАБАРЛАСАТЫН АДАМ","ТӨТЕНШЕ ЖАҒДАЙДА ХАБАРЛАСУ ТЕЛЕФОНЫ","ДӘРІГЕР","ДӘРІГЕРДІҢ ТЕЛЕФОНЫ","  "]
[null,{"$f":"Студенттер[[#This Row],[ОҚУШЫНЫҢ АТЫ]]","v":"Александр, Дэйвид"},"Александр, Дэйвид","david@example.com",1235550121,1235550126,"1993-01-01","Мишель Александр",1235550130,"Шу Ито",1235550134]
[null,{"$f":"Студенттер[[#This Row],[ОҚУШЫНЫҢ АТЫ]]","v":"Ким, Шейн"},"Ким, Шейн","shane@example.com",1235550122,1235550127,"1992-01-01","Джим Ким",1235550131,"Даниэль Рот",1235550135]
[null,{"$f":"Студенттер[[#This Row],[ОҚУШЫНЫҢ АТЫ]]","v":"Мирчандани, Бхарат"},"Мирчандани, Бхарат","bharat@example.com",1235550124,1235550128,"1991-01-01","Нитин С. Мирчандани",1235550132,"Джон Кейн",1235550136]
[null,{"$f":"Студенттер[[#This Row],[ОҚУШЫНЫҢ АТЫ]]","v":"Тернер, Ричард"},"Тернер, Ричард","richard@example.com",1235550125,1235550129,"1992-01-01","Олинда Тернер",1235550133,"Терри Эрлс",1235550137]

{"sheet":"Сынып тізімі","index":1,"n_rows":12,"n_cols":7,"rows_kept":12,"merged":[[12,1,12,6]]}
[]
[{"$nulls":3},"Графикалық дизайн институты"]
[null,null,"КУРС","Бейнелеу өнері 101","БАСТАЛУ КҮНІ","2011-06-06"]
[null,null,"ОҚЫТУШЫ","Хансон, Марк","АЯҚТАЛУ КҮНІ","2011-08-26"]
[null,null,"ҚАБЫЛДАНҒАН ОҚУШЫЛАР",{"$f":"COUNTA(Студент[ОҚУШЫНЫҢ АТЫ])","v":5}]
[]
[null," ","ОҚУШЫНЫҢ АТЫ","ЭЛЕКТРОНДЫҚ ПОШТА","ҮЙ ТЕЛЕФОНЫ","ҰЯЛЫ ТЕЛЕФОН","  "]
[null,null,"Александр, Дэйвид",{"$f":"IFERROR(VLOOKUP(Студент[[#This Row],[ОҚУШЫНЫҢ АТЫ]],Студенттер[],3),\"\")","v":"david@example.com"},{"$f":"IFERROR(VLOOKUP(Студент[[#This Row],[ОҚУШЫНЫҢ АТЫ]],Студенттер[],4),\"\")","v":1235550121},{"$f":"IFERROR(VLOOKUP(Студент[[#This Row],[ОҚУШЫНЫҢ АТЫ]],Студенттер[],5),\"\")","v":1235550126}]
[null,null,"Ким, Шейн",{"$f":"IFERROR(VLOOKUP(Студент[[#This Row],[ОҚУШЫНЫҢ АТЫ]],Студенттер[],3),\"\")","v":"shane@example.com"},{"$f":"IFERROR(VLOOKUP(Студент[[#This Row],[ОҚУШЫНЫҢ АТЫ]],Студенттер[],4),\"\")","v":1235550122},{"$f":"IFERROR(VLOOKUP(Студент[[#This Row],[ОҚУШЫНЫҢ АТЫ]],Студенттер[],5),\"\")","v":1235550127}]
[null,null,"Мирчандани, Бхарат",{"$f":"IFERROR(VLOOKUP(Студент[[#This Row],[ОҚУШЫНЫҢ АТЫ]],Студенттер[],3),\"\")","v":"bharat@example.com"},{"$f":"IFERROR(VLOOKUP(Студент[[#This Row],[ОҚУШЫНЫҢ АТЫ]],Студенттер[],4),\"\")","v":1235550124},{"$f":"IFERROR(VLOOKUP(Студент[[#This Row],[ОҚУШЫНЫҢ АТЫ]],Студенттер[],5),\"\")","v":1235550128}]
[null,null,"Тернер, Ричард",{"$f":"IFERROR(VLOOKUP(Студент[[#This Row],[ОҚУШЫНЫҢ АТЫ]],Студенттер[],3),\"\")","v":"richard@example.com"},{"$f":"IFERROR(VLOOKUP(Студент[[#This Row],[ОҚУШЫНЫҢ АТЫ]],Студенттер[],4),\"\")","v":1235550125},{"$f":"IFERROR(VLOOKUP(Студент[[#This Row],[ОҚУШЫНЫҢ АТЫ]],Студенттер[],5),\"\")","v":1235550129}]
[null,null,"Ким, Шейн",{"$f":"IFERROR(VLOOKUP(Студент[[#This Row],[ОҚУШЫНЫҢ АТЫ]],Студенттер[],3),\"\")","v":"shane@example.com"},{"$f":"IFERROR(VLOOKUP(Студент[[#This Row],[ОҚУШЫНЫҢ АТЫ]],Студенттер[],4),\"\")","v":1235550122},{"$f":"IFERROR(VLOOKUP(Студент[[#This Row],[ОҚУШЫНЫҢ АТЫ]],Студенттер[],5),\"\")","v":1235550127}]

{"sheet":"Оқушы туралы мәліметтер","index":2,"n_rows":12,"n_cols":4,"rows_kept":12}
[]
[]
[]
[null,null,"ОҚУШЫНЫҢ АТЫ","Александр, Дэйвид"]
[null,null,"ЭЛЕКТРОНДЫҚ ПОШТА",{"$f":"IFERROR(VLOOKUP(СтудентАты,Студенттер[],3,FALSE),\"\")","v":"david@example.com"}]
[null,null,"ҮЙ ТЕЛЕФОНЫ",{"$f":"IFERROR(VLOOKUP(СтудентАты,Студенттер[],4,FALSE),\"\")","v":1235550121}]
[null,null,"ҰЯЛЫ ТЕЛЕФОН",{"$f":"IFERROR(VLOOKUP(СтудентАты,Студенттер[],5,FALSE),\"\")","v":1235550126}]
[null,null,"ТУҒАН КҮНІ",{"$f":"IFERROR(VLOOKUP(СтудентАты,Студенттер[],6,FALSE),\"\")","v":"1993-01-01"}]
[null,null,"ТӨТЕНШЕ ЖАҒДАЙДА ХАБАРЛАСАТЫН АДАМ",{"$f":"IFERROR(VLOOKUP(СтудентАты,Студенттер[],7,FALSE),\"\")","v":"Мишель Александр"}]
[null,null,"ТӨТЕНШЕ ЖАҒДАЙДА ХАБАРЛАСУ ТЕЛЕФОНЫ",{"$f":"IFERROR(VLOOKUP(СтудентАты,Студенттер[],8,FALSE),\"\")","v":1235550130}]
[null,null,"ДӘРІГЕР",{"$f":"IFERROR(VLOOKUP(СтудентАты,Студенттер[],9,FALSE),\"\")","v":"Шу Ито"}]
[null,null,"ДӘРІГЕРДІҢ ТЕЛЕФОНЫ",{"$f":"IFERROR(VLOOKUP(СтудентАты,Студенттер[],10,FALSE),\"\")","v":1235550134}]